[Event "Late-Titled-Tuesday-Blitz-June-25-2024"]
[Site "Chess.com"]
[Date "2024.06.25"]
[Round "6"]
[White "Beaterawn"]
[Black "Sasha_Solovev_777"]
[Result "1/2-1/2"]
[WhiteElo "2400"]
[BlackElo "2265"]
[TimeControl "180+1"]
[EndTime "15:06:37 PDT"]
[Termination "Game drawn - insufficient material"]

1. e4 {[%clk 0:03:00.9]} 1... c5 {[%clk 0:02:59.6]} 2. Nf3 {[%clk 0:03:00.4]}
2... d6 {[%clk 0:02:59.4]} 3. d4 {[%clk 0:02:59.7]} 3... cxd4 {[%clk 0:03:00.3]}
4. Nxd4 {[%clk 0:03:00.1]} 4... Nf6 {[%clk 0:03:00.8]} 5. Nc3 {[%clk 0:02:59.3]}
5... a6 {[%clk 0:03:01.1]} 6. f4 {[%clk 0:02:59.8]} 6... g6 {[%clk 0:02:58.1]}
7. e5 {[%clk 0:02:57.7]} 7... dxe5 {[%clk 0:02:55.9]} 8. fxe5 {[%clk 0:02:58.6]}
8... Nd5 {[%clk 0:02:45]} 9. Nxd5 {[%clk 0:02:39.4]} 9... Qxd5 {[%clk
0:02:45.9]} 10. Nf3 {[%clk 0:02:39.3]} 10... Qxd1+ {[%clk 0:02:42.3]} 11. Kxd1
{[%clk 0:02:40.2]} 11... Nc6 {[%clk 0:02:42]} 12. Bf4 {[%clk 0:02:40]} 12... Bg7
{[%clk 0:02:40.1]} 13. h3 {[%clk 0:02:39.6]} 13... Bf5 {[%clk 0:02:32.7]} 14. c3
{[%clk 0:02:36.1]} 14... h6 {[%clk 0:02:27.7]} 15. Bc4 {[%clk 0:02:11.1]} 15...
e6 {[%clk 0:02:14.3]} 16. Re1 {[%clk 0:02:04.8]} 16... g5 {[%clk 0:02:12.6]} 17.
Bg3 {[%clk 0:02:00]} 17... g4 {[%clk 0:02:00.9]} 18. Nh4 {[%clk 0:01:41.6]}
18... O-O-O+ {[%clk 0:02:00.1]} 19. Kc1 {[%clk 0:01:40.3]} 19... Bd3 {[%clk
0:01:51.4]} 20. Bb3 {[%clk 0:01:29.2]} 20... h5 {[%clk 0:01:45.9]} 21. Bf4
{[%clk 0:01:20.3]} 21... b5 {[%clk 0:01:01.2]} 22. Bc2 {[%clk 0:01:18.7]} 22...
Kb7 {[%clk 0:00:59.6]} 23. hxg4 {[%clk 0:01:02.1]} 23... hxg4 {[%clk 0:00:58.8]}
24. g3 {[%clk 0:01:02.6]} 24... Bf8 {[%clk 0:00:47.7]} 25. Bxd3 {[%clk
0:00:55.8]} 25... Rxd3 {[%clk 0:00:48.6]} 26. Kc2 {[%clk 0:00:56]} 26... Rd5
{[%clk 0:00:48]} 27. Rad1 {[%clk 0:00:52.2]} 27... Rxd1 {[%clk 0:00:43.8]} 28.
Rxd1 {[%clk 0:00:53.1]} 28... Kc7 {[%clk 0:00:44.4]} 29. a4 {[%clk 0:00:49.7]}
29... Be7 {[%clk 0:00:43.9]} 30. axb5 {[%clk 0:00:46.5]} 30... axb5 {[%clk
0:00:44.8]} 31. Ng2 {[%clk 0:00:45.7]} 31... Rh2 {[%clk 0:00:41.6]} 32. Rd2
{[%clk 0:00:45.4]} 32... b4 {[%clk 0:00:41.3]} 33. Ne3 {[%clk 0:00:45]} 33...
Rh1 {[%clk 0:00:33.1]} 34. Nxg4 {[%clk 0:00:42.6]} 34... bxc3 {[%clk 0:00:30]}
35. bxc3 {[%clk 0:00:42]} 35... Na5 {[%clk 0:00:30]} 36. Rd4 {[%clk 0:00:35.6]}
36... Bc5 {[%clk 0:00:27.4]} 37. Ra4 {[%clk 0:00:35]} 37... Nc6 {[%clk
0:00:22.9]} 38. Re4 {[%clk 0:00:07]} 38... Rg1 {[%clk 0:00:20.5]} 39. Nf6 {[%clk
0:00:06.7]} 39... Rg2+ {[%clk 0:00:20]} 40. Kd3 {[%clk 0:00:05.3]} 40... Ne7
{[%clk 0:00:17.2]} 41. Re2 {[%clk 0:00:05.2]} 41... Rg1 {[%clk 0:00:17]} 42. Ne4
{[%clk 0:00:05.3]} 42... Bb6 {[%clk 0:00:13.6]} 43. Ng5 {[%clk 0:00:05]} 43...
Nf5 {[%clk 0:00:11.1]} 44. Nxf7 {[%clk 0:00:04.3]} 44... Nxg3 {[%clk 0:00:11.4]}
45. Bxg3 {[%clk 0:00:02.7]} 45... Rxg3+ {[%clk 0:00:12.3]} 46. Kc2 {[%clk
0:00:03.3]} 46... Re3 {[%clk 0:00:09.9]} 47. Rxe3 {[%clk 0:00:03.2]} 47... Bxe3
{[%clk 0:00:10.8]} 48. Kd3 {[%clk 0:00:03.4]} 48... Bc1 {[%clk 0:00:09.9]} 49.
Ke4 {[%clk 0:00:01.6]} 49... Kd7 {[%clk 0:00:09.9]} 50. c4 {[%clk 0:00:02]}
50... Ba3 {[%clk 0:00:09.5]} 51. Ng5 {[%clk 0:00:02.1]} 51... Ke7 {[%clk
0:00:09.9]} 52. Nf3 {[%clk 0:00:03]} 52... Bc5 {[%clk 0:00:09.6]} 53. Nd4 {[%clk
0:00:03.9]} 53... Bb6 {[%clk 0:00:09.4]} 54. Nb3 {[%clk 0:00:04.8]} 54... Bg1
{[%clk 0:00:09.1]} 55. c5 {[%clk 0:00:05.3]} 55... Kd7 {[%clk 0:00:09.7]} 56.
Kd3 {[%clk 0:00:06.2]} 56... Kc6 {[%clk 0:00:10.5]} 57. Kc4 {[%clk 0:00:07.1]}
57... Bf2 {[%clk 0:00:10.2]} 58. Na5+ {[%clk 0:00:07.7]} 58... Kc7 {[%clk
0:00:10.2]} 59. Kb5 {[%clk 0:00:08.6]} 59... Bg3 {[%clk 0:00:10.9]} 60. Nc4
{[%clk 0:00:08.8]} 60... Bf4 {[%clk 0:00:11]} 61. c6 {[%clk 0:00:09.2]} 61...
Bg3 {[%clk 0:00:10.9]} 62. Kc5 {[%clk 0:00:08.5]} 62... Bf2+ {[%clk 0:00:10.9]}
63. Kb5 {[%clk 0:00:09.1]} 63... Bg3 {[%clk 0:00:11.8]} 64. Nb6 {[%clk
0:00:04.5]} 64... Bxe5 {[%clk 0:00:11.7]} 65. Na8+ {[%clk 0:00:04.7]} 65... Kc8
{[%clk 0:00:12]} 66. Kb6 {[%clk 0:00:04.2]} 66... Bd4+ {[%clk 0:00:12.1]} 67.
Kb5 {[%clk 0:00:04.7]} 67... e5 {[%clk 0:00:13]} 68. Kc4 {[%clk 0:00:04.4]}
68... Bg1 {[%clk 0:00:12.5]} 69. Kd5 {[%clk 0:00:05]} 69... Bh2 {[%clk 0:00:12]}
70. Nb6+ {[%clk 0:00:04.4]} 70... Kc7 {[%clk 0:00:11.8]} 71. Nd7 {[%clk
0:00:04.9]} 71... e4 {[%clk 0:00:11.8]} 72. Kxe4 {[%clk 0:00:04.2]} 72... Kxc6
{[%clk 0:00:12.4]} 1/2-1/2

[Event "Late-Titled-Tuesday-Blitz-June-25-2024"]
[Site "Chess.com"]
[Date "2024.06.25"]
[Round "6"]
[White "ChristopherYoo"]
[Black "SpeedofLight0"]
[Result "1-0"]
[WhiteElo "3047"]
[BlackElo "3149"]
[TimeControl "180+1"]
[EndTime "15:06:39 PDT"]
[Termination "ChristopherYoo won by checkmate"]

1. d4 {[%clk 0:02:58.3]} 1... Nf6 {[%clk 0:02:58.3]} 2. Nf3 {[%clk 0:02:58.3]}
2... g6 {[%clk 0:02:55.7]} 3. c4 {[%clk 0:02:56.2]} 3... Bg7 {[%clk 0:02:55.9]}
4. Nc3 {[%clk 0:02:56.9]} 4... d6 {[%clk 0:02:56.1]} 5. e4 {[%clk 0:02:56.3]}
5... O-O {[%clk 0:02:56.7]} 6. Be2 {[%clk 0:02:57]} 6... e5 {[%clk 0:02:56.1]}
7. Be3 {[%clk 0:02:57.1]} 7... Na6 {[%clk 0:02:52.8]} 8. O-O {[%clk 0:02:54.1]}
8... Qe7 {[%clk 0:02:52.6]} 9. dxe5 {[%clk 0:02:44.6]} 9... dxe5 {[%clk
0:02:52.7]} 10. Nd5 {[%clk 0:02:45.2]} 10... Qd8 {[%clk 0:02:52.4]} 11. Bg5
{[%clk 0:02:35]} 11... c6 {[%clk 0:02:46.5]} 12. Nxf6+ {[%clk 0:02:10.3]} 12...
Bxf6 {[%clk 0:02:47.4]} 13. Qxd8 {[%clk 0:02:07.5]} 13... Bxd8 {[%clk
0:02:48.3]} 14. Be3 {[%clk 0:01:40.1]} 14... Bg4 {[%clk 0:02:46.6]} 15. c5
{[%clk 0:01:33.3]} 15... Nc7 {[%clk 0:02:45.2]} 16. Bc4 {[%clk 0:01:30.3]} 16...
Re8 {[%clk 0:02:24.9]} 17. Rad1 {[%clk 0:01:23]} 17... Kg7 {[%clk 0:02:09.9]}
18. Rd2 {[%clk 0:01:19.5]} 18... f6 {[%clk 0:01:56.1]} 19. Rfd1 {[%clk
0:01:15.6]} 19... Be7 {[%clk 0:01:48.6]} 20. h3 {[%clk 0:01:14.6]} 20... Be6
{[%clk 0:01:47.9]} 21. Bxe6 {[%clk 0:01:08.7]} 21... Nxe6 {[%clk 0:01:48.8]} 22.
Rd7 {[%clk 0:01:05.3]} 22... Rab8 {[%clk 0:01:47.5]} 23. Nd2 {[%clk 0:00:58.9]}
23... Nf8 {[%clk 0:01:32.6]} 24. Rd3 {[%clk 0:00:58.2]} 24... Red8 {[%clk
0:01:32.4]} 25. Nc4 {[%clk 0:00:58]} 25... Ne6 {[%clk 0:01:20.7]} 26. b4 {[%clk
0:00:53.8]} 26... Rxd3 {[%clk 0:01:16.1]} 27. Rxd3 {[%clk 0:00:53.3]} 27... Rd8
{[%clk 0:01:17]} 28. Rxd8 {[%clk 0:00:53.3]} 28... Nxd8 {[%clk 0:01:14.9]} 29.
Kf1 {[%clk 0:00:44.3]} 29... Kf7 {[%clk 0:01:12.7]} 30. Ke2 {[%clk 0:00:44.3]}
30... Ke6 {[%clk 0:01:11.7]} 31. Kd3 {[%clk 0:00:44.7]} 31... Kd7 {[%clk
0:01:11.9]} 32. g4 {[%clk 0:00:29.4]} 32... Ne6 {[%clk 0:01:06.4]} 33. g5 {[%clk
0:00:28.9]} 33... Nd8 {[%clk 0:00:55.3]} 34. gxf6 {[%clk 0:00:27.4]} 34... Bxf6
{[%clk 0:00:56.2]} 35. Na5 {[%clk 0:00:20.5]} 35... h5 {[%clk 0:00:54.1]} 36. a4
{[%clk 0:00:17.7]} 36... a6 {[%clk 0:00:43.9]} 37. Nc4 {[%clk 0:00:15.3]} 37...
Nf7 {[%clk 0:00:41.7]} 38. Bd2 {[%clk 0:00:12.7]} 38... Bd8 {[%clk 0:00:40.9]}
39. Ke2 {[%clk 0:00:08.2]} 39... Ke6 {[%clk 0:00:40.5]} 40. Kf3 {[%clk
0:00:07.7]} 40... Bg5 {[%clk 0:00:34.9]} 41. Bc3 {[%clk 0:00:05.7]} 41... Bd8
{[%clk 0:00:32.5]} 42. Kg2 {[%clk 0:00:06]} 42... Bc7 {[%clk 0:00:31.2]} 43. f3
{[%clk 0:00:06.2]} 43... Nd8 {[%clk 0:00:29]} 44. Bd2 {[%clk 0:00:04.8]} 44...
Kf6 {[%clk 0:00:25.8]} 45. Be3 {[%clk 0:00:04.6]} 45... Ne6 {[%clk 0:00:26.2]}
46. h4 {[%clk 0:00:02.3]} 46... Kf7 {[%clk 0:00:19.8]} 47. Kg3 {[%clk
0:00:02.6]} 47... Kf6 {[%clk 0:00:17.2]} 48. Bd2 {[%clk 0:00:02.6]} 48... g5
{[%clk 0:00:13.9]} 49. hxg5+ {[%clk 0:00:02.6]} 49... Nxg5 {[%clk 0:00:14.8]}
50. Be3 {[%clk 0:00:02.7]} 50... Ne6 {[%clk 0:00:14.1]} 51. Kh4 {[%clk
0:00:02.8]} 51... Kg6 {[%clk 0:00:14.4]} 52. Kg3 {[%clk 0:00:02.6]} 52... Kf6
{[%clk 0:00:09]} 53. Kh4 {[%clk 0:00:02.9]} 53... Kg6 {[%clk 0:00:09.7]} 54. Kg3
{[%clk 0:00:03.5]} 54... Nd4 {[%clk 0:00:04.4]} 55. Bd2 {[%clk 0:00:02.1]} 55...
Ne2+ {[%clk 0:00:03.5]} 56. Kh4 {[%clk 0:00:02.5]} 56... Nd4 {[%clk 0:00:04.3]}
57. Kg3 {[%clk 0:00:02.9]} 57... h4+ {[%clk 0:00:03.5]} 58. Kxh4 {[%clk
0:00:03]} 58... Nxf3+ {[%clk 0:00:03.5]} 59. Kg4 {[%clk 0:00:03.1]} 59... Nd4
{[%clk 0:00:03.8]} 60. Bc3 {[%clk 0:00:02.4]} 60... Kf6 {[%clk 0:00:04.3]} 61.
Bxd4 {[%clk 0:00:02.2]} 61... exd4 {[%clk 0:00:05.2]} 62. Kf3 {[%clk 0:00:02.2]}
62... Kg5 {[%clk 0:00:04.8]} 63. Ke2 {[%clk 0:00:02.9]} 63... Bd8 {[%clk
0:00:03.6]} 64. Kd3 {[%clk 0:00:03.1]} 64... Bf6 {[%clk 0:00:03.5]} 65. Na5
{[%clk 0:00:03.2]} 65... Bd8 {[%clk 0:00:01.4]} 66. Nxb7 {[%clk 0:00:03.1]}
66... Bc7 {[%clk 0:00:02.2]} 67. Kxd4 {[%clk 0:00:03.3]} 67... Kf4 {[%clk
0:00:02.9]} 68. Nd6 {[%clk 0:00:03.5]} 68... Kg5 {[%clk 0:00:02.9]} 69. b5
{[%clk 0:00:02.8]} 69... cxb5 {[%clk 0:00:02.5]} 70. axb5 {[%clk 0:00:03.7]}
70... axb5 {[%clk 0:00:01.9]} 71. Nxb5 {[%clk 0:00:04.6]} 71... Bd8 {[%clk
0:00:01.8]} 72. c6 {[%clk 0:00:05.1]} 72... Bb6+ {[%clk 0:00:01.4]} 73. Kd5
{[%clk 0:00:05.4]} 73... Kf4 {[%clk 0:00:02.3]} 74. c7 {[%clk 0:00:05.7]} 74...
Bxc7 {[%clk 0:00:03]} 75. Nxc7 {[%clk 0:00:06.6]} 75... Kg5 {[%clk 0:00:03.5]}
76. e5 {[%clk 0:00:07.4]} 76... Kg6 {[%clk 0:00:04.1]} 77. e6 {[%clk 0:00:08.1]}
77... Kf6 {[%clk 0:00:04.8]} 78. Kd6 {[%clk 0:00:08.7]} 78... Kg7 {[%clk
0:00:05.5]} 79. e7 {[%clk 0:00:09.6]} 79... Kf7 {[%clk 0:00:06.4]} 80. e8=Q+
{[%clk 0:00:10]} 80... Kf6 {[%clk 0:00:07.3]} 81. Qf8+ {[%clk 0:00:10.6]} 81...
Kg5 {[%clk 0:00:08.2]} 82. Ne6+ {[%clk 0:00:11.1]} 82... Kg4 {[%clk 0:00:09.1]}
83. Qf4+ {[%clk 0:00:11.1]} 83... Kh3 {[%clk 0:00:10]} 84. Qg5 {[%clk
0:00:11.3]} 84... Kh2 {[%clk 0:00:10.4]} 85. Nf4 {[%clk 0:00:12.2]} 85... Kh1
{[%clk 0:00:11.3]} 86. Qg2# {[%clk 0:00:12.9]} 1-0

[Event "Late-Titled-Tuesday-Blitz-June-25-2024"]
[Site "Chess.com"]
[Date "2024.06.25"]
[Round "6"]
[White "AryanTari"]
[Black "DenLaz"]
[Result "0-1"]
[WhiteElo "3029"]
[BlackElo "3135"]
[TimeControl "180+1"]
[EndTime "15:06:53 PDT"]
[Termination "DenLaz won by resignation"]

1. e4 {[%clk 0:03:00.9]} 1... c5 {[%clk 0:03:00.6]} 2. Nf3 {[%clk 0:02:55.1]}
2... e6 {[%clk 0:03:01]} 3. d4 {[%clk 0:02:47]} 3... cxd4 {[%clk 0:03:01.1]} 4.
Nxd4 {[%clk 0:02:47.8]} 4... Nc6 {[%clk 0:03:01.6]} 5. Bf4 {[%clk 0:02:46.9]}
5... d6 {[%clk 0:03:01.8]} 6. Nxc6 {[%clk 0:02:46.9]} 6... bxc6 {[%clk
0:03:01.9]} 7. c4 {[%clk 0:02:47.2]} 7... Rb8 {[%clk 0:03:02.1]} 8. Qc2 {[%clk
0:02:46.8]} 8... c5 {[%clk 0:03:01.7]} 9. Nc3 {[%clk 0:02:45.9]} 9... Ne7 {[%clk
0:03:02.4]} 10. O-O-O {[%clk 0:02:45.5]} 10... Nc6 {[%clk 0:03:00.7]} 11. e5
{[%clk 0:02:46]} 11... Nd4 {[%clk 0:02:54.7]} 12. Qa4+ {[%clk 0:02:45.6]} 12...
Bd7 {[%clk 0:02:53.6]} 13. Qa3 {[%clk 0:02:45.7]} 13... f6 {[%clk 0:02:19.1]}
14. exd6 {[%clk 0:01:58.8]} 14... e5 {[%clk 0:02:19.1]} 15. Be3 {[%clk
0:01:38.7]} 15... Bxd6 {[%clk 0:02:16.5]} 16. Bxd4 {[%clk 0:01:27.6]} 16... exd4
{[%clk 0:02:15.7]} 17. Re1+ {[%clk 0:01:27.6]} 17... Kf7 {[%clk 0:02:14.4]} 18.
Nd5 {[%clk 0:01:27.7]} 18... Bc6 {[%clk 0:01:52.9]} 19. Qh3 {[%clk 0:01:19.5]}
19... Qd7 {[%clk 0:01:46.2]} 20. Qh5+ {[%clk 0:01:08]} 20... g6 {[%clk 0:01:45]}
21. Qf3 {[%clk 0:01:08.6]} 21... Qf5 {[%clk 0:01:19.1]} 22. Qxf5 {[%clk
0:01:08.5]} 22... gxf5 {[%clk 0:01:20]} 23. Bd3 {[%clk 0:01:09]} 23... Bd7
{[%clk 0:01:20.6]} 24. f4 {[%clk 0:01:07]} 24... h5 {[%clk 0:01:20.8]} 25. Kc2
{[%clk 0:00:58.2]} 25... h4 {[%clk 0:01:20.6]} 26. Rhf1 {[%clk 0:00:56.9]} 26...
Rbe8 {[%clk 0:01:18.9]} 27. a3 {[%clk 0:00:49.8]} 27... a5 {[%clk 0:01:14.5]}
28. Nb6 {[%clk 0:00:38.4]} 28... Bc6 {[%clk 0:01:12.9]} 29. Nd5 {[%clk
0:00:37.5]} 29... Rhg8 {[%clk 0:01:11.2]} 30. Rxe8 {[%clk 0:00:32.3]} 30... Rxe8
{[%clk 0:01:12.1]} 31. Rf2 {[%clk 0:00:30.3]} 31... Bd7 {[%clk 0:01:10.5]} 32.
Re2 {[%clk 0:00:29.1]} 32... Rg8 {[%clk 0:01:09.5]} 33. Kd2 {[%clk 0:00:25.6]}
33... Be6 {[%clk 0:01:07.9]} 34. Ke1 {[%clk 0:00:25.1]} 34... Rb8 {[%clk
0:01:03.3]} 35. Kd1 {[%clk 0:00:19.3]} 35... Rb7 {[%clk 0:00:59.2]} 36. g3
{[%clk 0:00:18.9]} 36... Rb8 {[%clk 0:00:57.7]} 37. Ke1 {[%clk 0:00:17]} 37...
hxg3 {[%clk 0:00:57.3]} 38. hxg3 {[%clk 0:00:17.9]} 38... Rh8 {[%clk 0:00:57.5]}
39. Kf2 {[%clk 0:00:13.8]} 39... Rh1 {[%clk 0:00:57.9]} 40. Kg2 {[%clk
0:00:04.3]} 40... Rd1 {[%clk 0:00:56.9]} 41. Bc2 {[%clk 0:00:04.7]} 41... Rc1
{[%clk 0:00:57.1]} 42. Bd3 {[%clk 0:00:05.3]} 42... Bxd5+ {[%clk 0:00:45.1]} 43.
cxd5 {[%clk 0:00:06.2]} 43... c4 {[%clk 0:00:45.5]} 44. Rc2 {[%clk 0:00:06.9]}
44... Rxc2+ {[%clk 0:00:37.7]} 45. Bxc2 {[%clk 0:00:07.8]} 45... d3 {[%clk
0:00:38.3]} 46. Ba4 {[%clk 0:00:08]} 46... Bxa3 {[%clk 0:00:38.9]} 47. Bb5
{[%clk 0:00:04.8]} 47... d2 {[%clk 0:00:28.8]} 48. Ba4 {[%clk 0:00:04.5]} 48...
Bxb2 {[%clk 0:00:29.3]} 49. Kf3 {[%clk 0:00:04.6]} 49... Ke7 {[%clk 0:00:29.2]}
50. Ke2 {[%clk 0:00:04.6]} 50... c3 {[%clk 0:00:29.4]} 51. Kd3 {[%clk
0:00:04.8]} 51... Kd6 {[%clk 0:00:29.7]} 52. Kc4 {[%clk 0:00:05.1]} 52... Kc7
{[%clk 0:00:18.3]} 53. Kc5 {[%clk 0:00:02.1]} 53... Ba3+ {[%clk 0:00:18.2]} 54.
Kc4 {[%clk 0:00:02.3]} 54... Bb4 {[%clk 0:00:18.9]} 55. Bc2 {[%clk 0:00:02.4]}
55... Kb6 {[%clk 0:00:17.4]} 56. Ba4 {[%clk 0:00:01.1]} 56... Kc7 {[%clk
0:00:14.6]} 57. Bc2 {[%clk 0:00:01.7]} 57... Kd6 {[%clk 0:00:15.3]} 58. Ba4
{[%clk 0:00:02.4]} 58... Bc5 {[%clk 0:00:15.1]} 59. Kxc3 {[%clk 0:00:02.9]}
59... Kxd5 {[%clk 0:00:11.8]} 60. Kxd2 {[%clk 0:00:02.6]} 60... Kd4 {[%clk
0:00:12.4]} 61. Bc2 {[%clk 0:00:02.1]} 61... Bb4+ {[%clk 0:00:12.9]} 62. Kc1
{[%clk 0:00:01.9]} 62... Be1 {[%clk 0:00:13.1]} 63. Bxf5 {[%clk 0:00:01.8]}
63... Bxg3 {[%clk 0:00:13.8]} 64. Be6 {[%clk 0:00:02.5]} 64... Bxf4+ {[%clk
0:00:14.4]} 65. Kb1 {[%clk 0:00:03.2]} 65... Bd6 {[%clk 0:00:15.2]} 66. Bc8
{[%clk 0:00:03.6]} 66... Bb4 {[%clk 0:00:16.1]} 67. Ka2 {[%clk 0:00:04]} 67...
Ke5 {[%clk 0:00:16.5]} 68. Kb3 {[%clk 0:00:03.8]} 68... f5 {[%clk 0:00:16.9]}
69. Kc2 {[%clk 0:00:04]} 69... Ke4 {[%clk 0:00:16]} 70. Kd1 {[%clk 0:00:03.9]}
70... f4 {[%clk 0:00:16.3]} 71. Ke2 {[%clk 0:00:04]} 71... f3+ {[%clk
0:00:16.1]} 72. Kf2 {[%clk 0:00:03.5]} 72... Bc5+ {[%clk 0:00:16.7]} 73. Kg3
{[%clk 0:00:03.9]} 73... Ke3 {[%clk 0:00:17.2]} 74. Bb7 {[%clk 0:00:03]} 74...
f2 {[%clk 0:00:17.8]} 75. Kg2 {[%clk 0:00:03.6]} 75... Kd2 {[%clk 0:00:18.5]}
76. Kf1 {[%clk 0:00:03.1]} 76... Kc3 {[%clk 0:00:19]} 77. Bd5 {[%clk 0:00:03.4]}
77... a4 {[%clk 0:00:19.4]} 78. Be6 {[%clk 0:00:03.6]} 78... a3 {[%clk 0:00:20]}
79. Ke2 {[%clk 0:00:04.1]} 79... Kb2 {[%clk 0:00:20.7]} 80. Kf1 {[%clk
0:00:04.4]} 80... a2 {[%clk 0:00:20.9]} 81. Bxa2 {[%clk 0:00:03.6]} 81... Kxa2
{[%clk 0:00:21.8]} 82. Ke2 {[%clk 0:00:04]} 82... Kb3 {[%clk 0:00:22.5]} 83. Kf1
{[%clk 0:00:04.9]} 83... Kc2 {[%clk 0:00:23]} 84. Ke2 {[%clk 0:00:05.8]} 84...
Kc3 {[%clk 0:00:23.6]} 85. Kf1 {[%clk 0:00:06.7]} 85... Kd3 {[%clk 0:00:24.2]}
0-1

[Event "Late-Titled-Tuesday-Blitz-June-25-2024"]
[Site "Chess.com"]
[Date "2024.06.25"]
[Round "7"]
[White "Shahdad2007"]
[Black "ACollins05"]
[Result "0-1"]
[WhiteElo "2561"]
[BlackElo "2422"]
[TimeControl "180+1"]
[EndTime "15:10:51 PDT"]
[Termination "ACollins05 won by resignation"]

1. e4 {[%clk 0:03:00.9]} 1... a6 {[%clk 0:02:58]} 2. a4 {[%clk 0:02:58.3]} 2...
c5 {[%clk 0:02:57.7]} 3. Nf3 {[%clk 0:02:56.7]} 3... Nc6 {[%clk 0:02:56.3]} 4.
g3 {[%clk 0:02:53]} 4... g6 {[%clk 0:02:56]} 5. Bg2 {[%clk 0:02:52.9]} 5... Bg7
{[%clk 0:02:56.7]} 6. O-O {[%clk 0:02:53.1]} 6... d6 {[%clk 0:02:56.7]} 7. c3
{[%clk 0:02:53.5]} 7... Nf6 {[%clk 0:02:56.7]} 8. Re1 {[%clk 0:02:53.4]} 8...
O-O {[%clk 0:02:56.5]} 9. d4 {[%clk 0:02:53.6]} 9... cxd4 {[%clk 0:02:54.6]} 10.
cxd4 {[%clk 0:02:54.5]} 10... Bg4 {[%clk 0:02:55.1]} 11. h3 {[%clk 0:02:53]}
11... Bxf3 {[%clk 0:02:55.1]} 12. Bxf3 {[%clk 0:02:50.1]} 12... e5 {[%clk
0:02:55.7]} 13. d5 {[%clk 0:02:49.4]} 13... Nd4 {[%clk 0:02:55.7]} 14. Bg2
{[%clk 0:02:49.3]} 14... Qb6 {[%clk 0:02:54.5]} 15. Nc3 {[%clk 0:02:48.3]} 15...
Nd7 {[%clk 0:02:53.1]} 16. Be3 {[%clk 0:02:46.5]} 16... Qxb2 {[%clk 0:02:50.5]}
17. Bxd4 {[%clk 0:02:36.6]} 17... exd4 {[%clk 0:02:49.9]} 18. Ne2 {[%clk
0:02:33.2]} 18... d3 {[%clk 0:02:47]} 0-1

[Event "Late-Titled-Tuesday-Blitz-June-25-2024"]
[Site "Chess.com"]
[Date "2024.06.25"]
[Round "7"]
[White "Puzzlebot_1294"]
[Black "JSPrepz"]
[Result "1/2-1/2"]
[WhiteElo "2649"]
[BlackElo "2817"]
[TimeControl "180+1"]
[EndTime "15:11:54 PDT"]
[Termination "Game drawn by repetition"]

1. d4 {[%clk 0:02:53.8]} 1... d5 {[%clk 0:03:00]} 2. Bf4 {[%clk 0:02:52.7]} 2...
c5 {[%clk 0:02:59.9]} 3. e3 {[%clk 0:02:52.7]} 3... Nc6 {[%clk 0:03:00.1]} 4.
Nf3 {[%clk 0:02:52.7]} 4... Nf6 {[%clk 0:03:00.4]} 5. c3 {[%clk 0:02:52.1]} 5...
Qb6 {[%clk 0:02:59.1]} 6. Qc2 {[%clk 0:02:52.1]} 6... cxd4 {[%clk 0:02:58.8]} 7.
exd4 {[%clk 0:02:51.2]} 7... Bf5 {[%clk 0:02:59]} 8. Qb3 {[%clk 0:02:51.5]} 8...
e6 {[%clk 0:02:58.8]} 9. Nbd2 {[%clk 0:02:51.3]} 9... Be7 {[%clk 0:02:57.3]} 10.
Qxb6 {[%clk 0:02:51.1]} 10... axb6 {[%clk 0:02:57.1]} 11. Bb5 {[%clk 0:02:52]}
11... O-O {[%clk 0:02:56.3]} 12. O-O {[%clk 0:02:52]} 12... Rfc8 {[%clk
0:02:55.9]} 13. Rfe1 {[%clk 0:02:48.6]} 13... Na7 {[%clk 0:02:52.5]} 14. Bf1
{[%clk 0:02:42]} 14... Nc6 {[%clk 0:02:52.9]} 15. h3 {[%clk 0:02:36.6]} 15... h6
{[%clk 0:02:52.4]} 16. Bb5 {[%clk 0:02:28.6]} 16... Na7 {[%clk 0:02:52.1]} 17.
Bf1 {[%clk 0:02:28.1]} 17... Nc6 {[%clk 0:02:52.5]} 18. Bb5 {[%clk 0:02:23.1]}
18... Ra5 {[%clk 0:02:52.2]} 19. Bf1 {[%clk 0:02:17.5]} 19... Rca8 {[%clk
0:02:48.1]} 20. a3 {[%clk 0:02:16]} 20... Rc8 {[%clk 0:02:48.4]} 21. Nb3 {[%clk
0:02:15.1]} 21... Raa8 {[%clk 0:02:47.2]} 22. Nbd2 {[%clk 0:02:10.1]} 22... Na5
{[%clk 0:02:46.7]} 23. Bh2 {[%clk 0:02:02.1]} 23... Ne4 {[%clk 0:02:41.9]} 24.
Nxe4 {[%clk 0:01:59.6]} 24... Bxe4 {[%clk 0:02:42.8]} 25. Nd2 {[%clk 0:01:59.7]}
25... Bg6 {[%clk 0:02:41.6]} 26. Rad1 {[%clk 0:01:53.8]} 26... Bc2 {[%clk
0:02:40.4]} 27. Rc1 {[%clk 0:01:53.5]} 27... Bg6 {[%clk 0:02:41.3]} 28. Rcd1
{[%clk 0:01:50.4]} 28... Bc2 {[%clk 0:02:41.2]} 29. Rc1 {[%clk 0:01:50.4]} 29...
Bg6 {[%clk 0:02:42.1]} 30. Rcd1 {[%clk 0:01:50.8]} 1/2-1/2

[Event "Late-Titled-Tuesday-Blitz-June-25-2024"]
[Site "Chess.com"]
[Date "2024.06.25"]
[Round "7"]
[White "Cheer_Down"]
[Black "TheAlienParty"]
[Result "0-1"]
[WhiteElo "2478"]
[BlackElo "2360"]
[TimeControl "180+1"]
[EndTime "15:11:56 PDT"]
[Termination "TheAlienParty won by resignation"]

1. e4 {[%clk 0:03:00.9]} 1... e5 {[%clk 0:02:19.4]} 2. Nf3 {[%clk 0:03:00.2]}
2... Nc6 {[%clk 0:02:18.7]} 3. Bc4 {[%clk 0:02:58.7]} 3... Bc5 {[%clk
0:02:18.1]} 4. c3 {[%clk 0:02:58.2]} 4... Nf6 {[%clk 0:02:18]} 5. d3 {[%clk
0:02:58.3]} 5... O-O {[%clk 0:02:17.5]} 6. O-O {[%clk 0:02:57.8]} 6... d5 {[%clk
0:02:17.5]} 7. exd5 {[%clk 0:02:56.4]} 7... Nxd5 {[%clk 0:02:17.5]} 8. a4 {[%clk
0:02:38.4]} 8... a5 {[%clk 0:02:13.7]} 9. Nbd2 {[%clk 0:02:19.5]} 9... Nb6
{[%clk 0:02:10.7]} 10. Bb5 {[%clk 0:02:19.5]} 10... Bg4 {[%clk 0:02:04.2]} 11.
Re1 {[%clk 0:02:13.9]} 11... f6 {[%clk 0:01:55.7]} 12. Qb3+ {[%clk 0:02:03.2]}
12... Kh8 {[%clk 0:01:53.9]} 13. Qc4 {[%clk 0:02:03.3]} 13... Nxc4 {[%clk
0:01:50.9]} 0-1

[Event "Late-Titled-Tuesday-Blitz-June-25-2024"]
[Site "Chess.com"]
[Date "2024.06.25"]
[Round "7"]
[White "dosto07"]
[Black "lluiss"]
[Result "1-0"]
[WhiteElo "2439"]
[BlackElo "2252"]
[TimeControl "180+1"]
[EndTime "15:11:57 PDT"]
[Termination "dosto07 won by resignation"]

1. e4 {[%clk 0:03:00.9]} 1... c5 {[%clk 0:02:58.9]} 2. Nf3 {[%clk 0:03:01.2]}
2... d6 {[%clk 0:02:58.7]} 3. Bb5+ {[%clk 0:02:59]} 3... Bd7 {[%clk 0:02:58.2]}
4. Bxd7+ {[%clk 0:02:58.9]} 4... Nxd7 {[%clk 0:02:59.1]} 5. O-O {[%clk
0:02:58.9]} 5... Ngf6 {[%clk 0:02:59.3]} 6. Qe2 {[%clk 0:02:58.6]} 6... e6
{[%clk 0:02:59.3]} 7. c4 {[%clk 0:02:58.6]} 7... Be7 {[%clk 0:02:58.9]} 8. d4
{[%clk 0:02:58.8]} 8... cxd4 {[%clk 0:02:58.3]} 9. Nxd4 {[%clk 0:02:59.7]} 9...
O-O {[%clk 0:02:58.4]} 10. Nc3 {[%clk 0:02:54]} 10... a6 {[%clk 0:02:58.3]} 11.
b3 {[%clk 0:02:53]} 11... Rc8 {[%clk 0:02:57.5]} 12. Bb2 {[%clk 0:02:53]} 12...
Qa5 {[%clk 0:02:55.9]} 13. Rad1 {[%clk 0:02:48]} 13... b5 {[%clk 0:02:10]} 14.
cxb5 {[%clk 0:02:47.6]} 14... Rxc3 {[%clk 0:02:09.9]} 15. Bxc3 {[%clk
0:02:46.6]} 15... Qxc3 {[%clk 0:02:09]} 16. Nc6 {[%clk 0:02:46.6]} 16... Re8
{[%clk 0:01:54]} 17. Rc1 {[%clk 0:02:45.2]} 17... Qxc1 {[%clk 0:01:37.3]} 18.
Rxc1 {[%clk 0:02:43.7]} 18... Bf8 {[%clk 0:01:37]} 19. bxa6 {[%clk 0:02:39.7]}
19... Nc5 {[%clk 0:01:35.6]} 20. a7 {[%clk 0:02:32.1]} 1-0